[Event "*** Titled Tuesday Blitz"]
[Site "Chess.com"]
[Date "2018.06.05"]
[Round "4"]
[White "The_Unbeatable_One"]
[Black "Gareth-Bale11"]
[Result "1-0"]
[WhiteElo "2704"]
[BlackElo "2438"]
[TimeControl "180+2"]
[EndTime "13:59:05 PDT"]
[Termination "The_Unbeatable_One won by checkmate"]

1. Nf3 {[%clk 0:03:01.9]} 1... d5 {[%clk 0:03:00.2]} 2. g3 {[%clk 0:03:02.7]}
2... Nf6 {[%clk 0:02:59.9]} 3. Bg2 {[%clk 0:03:03.7]} 3... g6 {[%clk 0:03:01.8]}
4. b3 {[%clk 0:03:03.7]} 4... Bg7 {[%clk 0:03:02.2]} 5. Bb2 {[%clk 0:03:04.9]}
5... O-O {[%clk 0:03:04.1]} 6. O-O {[%clk 0:03:05]} 6... c5 {[%clk 0:03:04.9]}
7. c4 {[%clk 0:03:05.3]} 7... d4 {[%clk 0:03:05.5]} 8. d3 {[%clk 0:03:06.1]}
8... Nc6 {[%clk 0:03:06]} 9. Nbd2 {[%clk 0:03:06.4]} 9... e5 {[%clk 0:03:06.3]}
10. a3 {[%clk 0:03:07]} 10... a5 {[%clk 0:03:06.6]} 11. Ne1 {[%clk 0:03:07.9]}
11... Bf5 {[%clk 0:03:04.2]} 12. Ne4 {[%clk 0:02:49.4]} 12... Nxe4 {[%clk
0:02:59.1]} 13. dxe4 {[%clk 0:02:49.4]} 13... Be6 {[%clk 0:03:01]} 14. Nd3
{[%clk 0:02:49.9]} 14... b6 {[%clk 0:03:02.4]} 15. f4 {[%clk 0:02:49.9]} 15...
f6 {[%clk 0:03:03.6]} 16. f5 {[%clk 0:02:50.1]} 16... Bf7 {[%clk 0:03:04.9]} 17.
a4 {[%clk 0:02:47.6]} 17... g5 {[%clk 0:03:01.1]} 18. Bc1 {[%clk 0:02:47.1]}
18... Ne7 {[%clk 0:02:57.4]} 19. Bd2 {[%clk 0:02:43.1]} 19... Nc8 {[%clk
0:02:57.7]} 20. Qc2 {[%clk 0:02:36.8]} 20... Nd6 {[%clk 0:02:57.7]} 21. Nf2
{[%clk 0:02:37.7]} 21... Be8 {[%clk 0:02:59.6]} 22. Qd3 {[%clk 0:02:38.5]} 22...
Bc6 {[%clk 0:02:59]} 23. Bf3 {[%clk 0:02:39.6]} 23... Qd7 {[%clk 0:02:58.7]} 24.
h4 {[%clk 0:02:40.4]} 24... h6 {[%clk 0:02:58.7]} 25. hxg5 {[%clk 0:02:40.9]}
25... hxg5 {[%clk 0:03:00.6]} 26. Kg2 {[%clk 0:02:20.3]} 26... Rae8 {[%clk
0:02:59]} 27. Bh5 {[%clk 0:02:19.5]} 27... Re7 {[%clk 0:02:58.6]} 28. Rh1 {[%clk
0:02:19.2]} 28... Qxf5 {[%clk 0:02:54.3]} 29. Bf3 {[%clk 0:02:11.7]} 29... Qc8
{[%clk 0:02:49.5]} 30. g4 {[%clk 0:02:11.5]} 30... Qb7 {[%clk 0:02:46.1]} 31.
Rh5 {[%clk 0:02:09.9]} 31... Kf7 {[%clk 0:02:46.1]} 32. Rah1 {[%clk 0:02:10.4]}
32... Ke8 {[%clk 0:02:46.7]} 33. Rh7 {[%clk 0:02:09.1]} 33... Kd7 {[%clk
0:02:47.6]} 34. R1h5 {[%clk 0:02:02.3]} 34... Kc8 {[%clk 0:02:46.5]} 35. Rh3
{[%clk 0:01:58.3]} 35... Kb8 {[%clk 0:02:47.1]} 36. Rh2 {[%clk 0:01:59.1]} 36...
Ka7 {[%clk 0:02:47.6]} 37. R2h3 {[%clk 0:02:00.1]} 37... Ka6 {[%clk 0:02:48.2]}
38. Rh2 {[%clk 0:02:01.4]} 38... Nf7 {[%clk 0:02:46.8]} 39. Rxg7 {[%clk
0:02:01.2]} 39... Nd6 {[%clk 0:02:47.6]} 40. Rxe7 {[%clk 0:02:00.7]} 40... Qxe7
{[%clk 0:02:49.5]} 41. Qc2 {[%clk 0:02:01.2]} 41... Qb7 {[%clk 0:02:45.7]} 42.
Qb1 {[%clk 0:02:00.7]} 42... f5 {[%clk 0:02:43.3]} 43. gxf5 {[%clk 0:01:58.2]}
43... g4 {[%clk 0:02:41.4]} 44. Rh6 {[%clk 0:01:45]} 44... gxf3+ {[%clk
0:02:34.6]} 45. exf3 {[%clk 0:01:46.1]} 45... Rg8+ {[%clk 0:02:36.4]} 46. Kf1
{[%clk 0:01:44.3]} 46... Nxf5 {[%clk 0:02:35.7]} 47. exf5 {[%clk 0:01:33]} 47...
Bxf3 {[%clk 0:02:37.6]} 48. Rg6 {[%clk 0:01:32.6]} 48... Rh8 {[%clk 0:02:36.5]}
49. Rg1 {[%clk 0:01:26.4]} 49... e4 {[%clk 0:02:35.9]} 50. Bf4 {[%clk 0:01:27]}
50... e3 {[%clk 0:02:36.3]} 51. f6 {[%clk 0:01:12.7]} 51... Qd7 {[%clk
0:02:28.6]} 52. Qg6 {[%clk 0:01:05.7]} 52... Re8 {[%clk 0:02:00.9]} 53. f7
{[%clk 0:01:02.9]} 53... Rf8 {[%clk 0:01:59.5]} 54. Nd3 {[%clk 0:00:50.9]} 54...
Qxf7 {[%clk 0:01:41.7]} 55. Qd6 {[%clk 0:00:41.1]} 55... Ka7 {[%clk 0:01:23.6]}
56. Rg6 {[%clk 0:00:37.5]} 56... Qb7 {[%clk 0:00:52.2]} 57. Qxf8 {[%clk
0:00:29.3]} 57... Be4 {[%clk 0:00:45.9]} 58. Rg7 {[%clk 0:00:28.8]} 58... Bxd3+
{[%clk 0:00:47.7]} 59. Ke1 {[%clk 0:00:29.4]} 59... Bc2 {[%clk 0:00:48.6]} 60.
Rxb7+ {[%clk 0:00:30.1]} 60... Kxb7 {[%clk 0:00:50.5]} 61. Qe7+ {[%clk
0:00:31.2]} 61... Kc6 {[%clk 0:00:52.4]} 62. Qe6+ {[%clk 0:00:31.7]} 62... Kb7
{[%clk 0:00:52.8]} 63. Qd7+ {[%clk 0:00:32.6]} 63... Ka6 {[%clk 0:00:54.4]} 64.
Qc8+ {[%clk 0:00:32]} 64... Ka7 {[%clk 0:00:55.1]} 65. Qb8+ {[%clk 0:00:33.1]}
65... Ka6 {[%clk 0:00:56]} 66. Qa8# {[%clk 0:00:34.4]} 1-0

[Event "*** Titled Tuesday Blitz"]
[Site "Chess.com"]
[Date "2018.06.05"]
[Round "4"]
[White "LuisFSiles"]
[Black "saraswathii"]
[Result "0-1"]
[WhiteElo "2135"]
[BlackElo "2279"]
[TimeControl "180+2"]
[EndTime "13:59:07 PDT"]
[Termination "saraswathii won on time"]

1. e4 {[%clk 0:03:01.7]} 1... c5 {[%clk 0:03:00.5]} 2. Nf3 {[%clk 0:03:01.5]}
2... e6 {[%clk 0:03:01.5]} 3. c3 {[%clk 0:03:02.3]} 3... Nf6 {[%clk 0:03:01.6]}
4. e5 {[%clk 0:03:03.2]} 4... Nd5 {[%clk 0:03:02.4]} 5. Bc4 {[%clk 0:03:04]}
5... Nb6 {[%clk 0:03:02.9]} 6. Bb3 {[%clk 0:03:04.6]} 6... c4 {[%clk 0:03:03.3]}
7. Bc2 {[%clk 0:03:03.7]} 7... Nc6 {[%clk 0:03:04.1]} 8. b3 {[%clk 0:03:01.6]}
8... Qc7 {[%clk 0:03:02.8]} 9. Qe2 {[%clk 0:03:01.3]} 9... cxb3 {[%clk
0:02:58.9]} 10. axb3 {[%clk 0:03:00.8]} 10... d6 {[%clk 0:02:58]} 11. d4 {[%clk
0:02:49.3]} 11... dxe5 {[%clk 0:02:57.7]} 12. dxe5 {[%clk 0:02:50.8]} 12... Be7
{[%clk 0:02:57.7]} 13. O-O {[%clk 0:02:50.6]} 13... O-O {[%clk 0:02:57.5]} 14.
Qe4 {[%clk 0:02:31.1]} 14... g6 {[%clk 0:02:55.2]} 15. Bh6 {[%clk 0:02:32]}
15... Rd8 {[%clk 0:02:52.3]} 16. h4 {[%clk 0:02:27.7]} 16... Nd7 {[%clk
0:02:45.8]} 17. Re1 {[%clk 0:02:21.9]} 17... b6 {[%clk 0:02:40.1]} 18. h5 {[%clk
0:02:08.5]} 18... Nc5 {[%clk 0:02:40.4]} 19. Qg4 {[%clk 0:01:58]} 19... Nd3
{[%clk 0:02:40.6]} 20. hxg6 {[%clk 0:01:55.9]} 20... fxg6 {[%clk 0:02:37.8]} 21.
Re3 {[%clk 0:01:48.3]} 21... Ndxe5 {[%clk 0:02:30.1]} 22. Nxe5 {[%clk
0:01:39.6]} 22... Nxe5 {[%clk 0:02:32]} 23. Qg3 {[%clk 0:01:38.2]} 23... Bd6
{[%clk 0:02:29]} 24. Bf4 {[%clk 0:01:38.3]} 24... Nc6 {[%clk 0:02:24.5]} 25.
Bxd6 {[%clk 0:01:03.2]} 25... Qxd6 {[%clk 0:02:24.8]} 26. f4 {[%clk 0:01:02.6]}
26... Ne7 {[%clk 0:02:08.7]} 27. Na3 {[%clk 0:00:53.3]} 27... Bd7 {[%clk
0:01:51.6]} 28. Nc4 {[%clk 0:00:52.1]} 28... Qc5 {[%clk 0:01:51.9]} 29. Kh2
{[%clk 0:00:37.1]} 29... Qh5+ {[%clk 0:01:24.5]} 30. Kg1 {[%clk 0:00:37.8]}
30... Qc5 {[%clk 0:01:25.2]} 31. Kh2 {[%clk 0:00:38.3]} 31... Rf8 {[%clk
0:01:17.8]} 32. Ne5 {[%clk 0:00:37.1]} 32... Be8 {[%clk 0:01:16]} 33. Rae1
{[%clk 0:00:37.6]} 33... Rd8 {[%clk 0:01:09.5]} 34. b4 {[%clk 0:00:37.6]} 34...
Qc7 {[%clk 0:01:06.5]} 35. Ng4 {[%clk 0:00:38.4]} 35... Nd5 {[%clk 0:00:46.7]}
36. Rxe6 {[%clk 0:00:34.5]} 36... Bd7 {[%clk 0:00:40.9]} 37. Nh6+ {[%clk
0:00:31.5]} 37... Kh8 {[%clk 0:00:36.9]} 38. Rxg6 {[%clk 0:00:29.9]} 38... hxg6
{[%clk 0:00:19.3]} 39. Qxg6 {[%clk 0:00:29.7]} 39... Qxf4+ {[%clk 0:00:20.1]}
40. Kg1 {[%clk 0:00:17.4]} 40... Qf2+ {[%clk 0:00:19.8]} 41. Kh2 {[%clk
0:00:11.4]} 41... Qh4+ {[%clk 0:00:20.6]} 42. Kg1 {[%clk 0:00:12.1]} 42... Qxe1+
{[%clk 0:00:22.5]} 43. Kh2 {[%clk 0:00:13.4]} 43... Qh4+ {[%clk 0:00:21.1]} 44.
Kg1 {[%clk 0:00:14.4]} 44... Nf6 {[%clk 0:00:17.6]} 0-1

[Event "*** Titled Tuesday Blitz"]
[Site "Chess.com"]
[Date "2018.06.05"]
[Round "4"]
[White "GGX0X0"]
[Black "Godzillator"]
[Result "0-1"]
[WhiteElo "2318"]
[BlackElo "2253"]
[TimeControl "180+2"]
[EndTime "13:59:14 PDT"]
[Termination "Godzillator won by resignation"]

1. e4 {[%clk 0:03:01.9]} 1... c6 {[%clk 0:03:00.7]} 2. Nc3 {[%clk 0:02:39.9]}
2... d5 {[%clk 0:03:01.6]} 3. Nf3 {[%clk 0:02:40.9]} 3... Bg4 {[%clk 0:03:01.3]}
4. h3 {[%clk 0:02:41.7]} 4... Bxf3 {[%clk 0:03:02.2]} 5. Qxf3 {[%clk 0:02:43.6]}
5... Nf6 {[%clk 0:03:03.5]} 6. e5 {[%clk 0:02:39.7]} 6... Nfd7 {[%clk
0:03:03.9]} 7. d4 {[%clk 0:02:40.8]} 7... e6 {[%clk 0:03:04.6]} 8. Bf4 {[%clk
0:02:32.6]} 8... c5 {[%clk 0:03:05.2]} 9. Nb5 {[%clk 0:02:07]} 9... Nc6 {[%clk
0:02:56.8]} 10. c3 {[%clk 0:01:47.1]} 10... cxd4 {[%clk 0:02:51.5]} 11. cxd4
{[%clk 0:01:47.7]} 11... a6 {[%clk 0:02:51.9]} 12. Nd6+ {[%clk 0:01:29.7]} 12...
Bxd6 {[%clk 0:02:51.9]} 13. exd6 {[%clk 0:01:31.6]} 13... Nxd4 {[%clk
0:02:53.1]} 14. Qd1 {[%clk 0:01:22]} 14... Qa5+ {[%clk 0:02:39.1]} 15. Bd2
{[%clk 0:01:18.7]} 15... Qc5 {[%clk 0:02:39.4]} 16. Bc3 {[%clk 0:01:04.9]} 16...
Nf5 {[%clk 0:02:28.8]} 17. g4 {[%clk 0:01:00.4]} 17... d4 {[%clk 0:02:23.8]} 18.
gxf5 {[%clk 0:00:53.7]} 18... dxc3 {[%clk 0:02:24.9]} 19. fxe6 {[%clk
0:00:54.8]} 19... fxe6 {[%clk 0:02:20.6]} 20. Rc1 {[%clk 0:00:35.9]} 20... Qe5+
{[%clk 0:02:20.6]} 21. Qe2 {[%clk 0:00:33.2]} 21... cxb2 {[%clk 0:02:21.2]} 22.
Rb1 {[%clk 0:00:33.4]} 22... Qa5+ {[%clk 0:01:56.1]} 23. Qd2 {[%clk 0:00:30.4]}
23... Qxd2+ {[%clk 0:01:52.5]} 24. Kxd2 {[%clk 0:00:32.3]} 24... O-O-O {[%clk
0:01:53]} 25. Rxb2 {[%clk 0:00:29.8]} 25... Ne5 {[%clk 0:01:54]} 26. Ke3 {[%clk
0:00:23.4]} 26... Rxd6 {[%clk 0:01:53.5]} 27. Be2 {[%clk 0:00:22.6]} 27... Rf8
{[%clk 0:01:46.8]} 28. Rc1+ {[%clk 0:00:21.5]} 28... Rc6 {[%clk 0:01:44.8]} 29.
Rg1 {[%clk 0:00:23]} 29... g6 {[%clk 0:01:43.3]} 30. Rb4 {[%clk 0:00:22]} 30...
Rc3+ {[%clk 0:01:11.6]} 31. Kd4 {[%clk 0:00:18.8]} 31... Rc2 {[%clk 0:01:12.5]}
32. Re1 {[%clk 0:00:11.3]} 32... Nc6+ {[%clk 0:01:12.8]} 33. Kd3 {[%clk
0:00:09]} 33... Nxb4+ {[%clk 0:01:13.8]} 34. Ke3 {[%clk 0:00:10.8]} 34... Nd5+
{[%clk 0:01:07.6]} 35. Kd4 {[%clk 0:00:11.4]} 35... Rxf2 {[%clk 0:01:06.4]} 36.
Bg4 {[%clk 0:00:12.5]} 36... Rf4+ {[%clk 0:01:03.9]} 37. Ke5 {[%clk 0:00:12.5]}
37... Rxg4 {[%clk 0:01:02.9]} 38. hxg4 {[%clk 0:00:13.9]} 38... Rxa2 {[%clk
0:01:03.2]} 39. Kxe6 {[%clk 0:00:15.2]} 39... Nc7+ {[%clk 0:01:03.9]} 40. Kf7
{[%clk 0:00:11.6]} 40... Rg2 {[%clk 0:01:02.4]} 41. Re4 {[%clk 0:00:11.3]} 41...
h5 {[%clk 0:01:01.8]} 42. gxh5 {[%clk 0:00:11.2]} 42... gxh5 {[%clk 0:01:02.4]}
43. Rd4 {[%clk 0:00:12.3]} 43... Rf2+ {[%clk 0:00:58.8]} 44. Ke7 {[%clk
0:00:13.4]} 44... Re2+ {[%clk 0:00:53.2]} 45. Kf7 {[%clk 0:00:13.8]} 45... Re5
{[%clk 0:00:51.3]} 46. Kf6 {[%clk 0:00:13.6]} 46... Rd5 {[%clk 0:00:51.4]} 47.
Rc4 {[%clk 0:00:12.9]} 47... b5 {[%clk 0:00:51.8]} 48. Rc6 {[%clk 0:00:13.2]}
48... Kb7 {[%clk 0:00:52.1]} 49. Rc1 {[%clk 0:00:14.2]} 49... Kb6 {[%clk
0:00:52.3]} 50. Ra1 {[%clk 0:00:13.1]} 50... a5 {[%clk 0:00:53.2]} 51. Rc1
{[%clk 0:00:14.1]} 51... b4 {[%clk 0:00:53.6]} 52. Rb1 {[%clk 0:00:15.4]} 52...
Rc5 {[%clk 0:00:50.7]} 53. Rd1 {[%clk 0:00:14.8]} 53... Kb5 {[%clk 0:00:50.9]}
54. Rd7 {[%clk 0:00:14.5]} 54... a4 {[%clk 0:00:51.4]} 55. Rd8 {[%clk
0:00:14.5]} 55... b3 {[%clk 0:00:51.3]} 56. Rb8+ {[%clk 0:00:15.7]} 56... Kc4
{[%clk 0:00:52.2]} 57. Kg6 {[%clk 0:00:16.9]} 57... a3 {[%clk 0:00:51.8]} 58.
Kh6 {[%clk 0:00:17.4]} 58... a2 {[%clk 0:00:52.7]} 59. Ra8 {[%clk 0:00:18.8]}
59... Kc3 {[%clk 0:00:53.3]} 60. Ra4 {[%clk 0:00:19.2]} 60... Kb2 {[%clk
0:00:54.1]} 61. Ra7 {[%clk 0:00:19.5]} 61... a1=Q {[%clk 0:00:54.7]} 62. Rxa1
{[%clk 0:00:20.5]} 62... Kxa1 {[%clk 0:00:55.7]} 63. Kg7 {[%clk 0:00:21.1]}
63... b2 {[%clk 0:00:56.8]} 64. Kh6 {[%clk 0:00:22.2]} 64... h4 {[%clk
0:00:56.8]} 65. Kg7 {[%clk 0:00:22.6]} 65... h3 {[%clk 0:00:58]} 66. Kh6 {[%clk
0:00:23.7]} 66... h2 {[%clk 0:00:59.3]} 67. Kg7 {[%clk 0:00:25.6]} 67... h1=Q
{[%clk 0:01:00.2]} 68. Kf8 {[%clk 0:00:27.5]} 0-1

[Event "*** Titled Tuesday Blitz"]
[Site "Chess.com"]
[Date "2018.06.05"]
[Round "4"]
[White "savinspm"]
[Black "Sameer555"]
[Result "0-1"]
[WhiteElo "2128"]
[BlackElo "2188"]
[TimeControl "180+2"]
[EndTime "13:59:16 PDT"]
[Termination "Sameer555 won by resignation"]

1. e4 {[%clk 0:03:01.9]} 1... c5 {[%clk 0:02:57.6]} 2. Nc3 {[%clk 0:03:02.4]}
2... a6 {[%clk 0:02:56.2]} 3. a4 {[%clk 0:03:02.2]} 3... Nc6 {[%clk 0:02:55.9]}
4. g3 {[%clk 0:03:03.5]} 4... g6 {[%clk 0:02:55.2]} 5. Bg2 {[%clk 0:03:04.8]}
5... Bg7 {[%clk 0:02:55.8]} 6. d3 {[%clk 0:03:06.2]} 6... e6 {[%clk 0:02:56.5]}
7. Be3 {[%clk 0:03:07.3]} 7... Nd4 {[%clk 0:02:56.7]} 8. Nf3 {[%clk 0:03:05.1]}
8... Ne7 {[%clk 0:02:57.4]} 9. Qd2 {[%clk 0:03:00.3]} 9... O-O {[%clk
0:02:56.3]} 10. Nd1 {[%clk 0:03:01.2]} 10... Nec6 {[%clk 0:02:55.2]} 11. O-O
{[%clk 0:02:58.8]} 11... Rb8 {[%clk 0:02:54.3]} 12. Ra3 {[%clk 0:02:56.1]} 12...
Nxf3+ {[%clk 0:02:53.1]} 13. Bxf3 {[%clk 0:02:56.6]} 13... Nd4 {[%clk
0:02:54.5]} 14. Bg2 {[%clk 0:02:56.9]} 14... b5 {[%clk 0:02:54.4]} 15. axb5
{[%clk 0:02:53.8]} 15... axb5 {[%clk 0:02:56.3]} 16. c3 {[%clk 0:02:55.1]} 16...
b4 {[%clk 0:02:56.3]} 17. Ra2 {[%clk 0:02:39.4]} 17... b3 {[%clk 0:02:46.5]} 18.
Ra4 {[%clk 0:02:27.1]} 18... Nc2 {[%clk 0:02:28.6]} 19. Bxc5 {[%clk 0:02:27.3]}
19... d6 {[%clk 0:02:29.8]} 20. Be3 {[%clk 0:02:25.7]} 20... Bd7 {[%clk
0:02:29.6]} 21. Ra6 {[%clk 0:02:16.6]} 21... Qc7 {[%clk 0:02:28.2]} 22. Ra7
{[%clk 0:02:14]} 22... Qc6 {[%clk 0:02:27.9]} 23. e5 {[%clk 0:02:10.5]} 23... d5
{[%clk 0:02:27.9]} 24. d4 {[%clk 0:02:04.9]} 24... Nxe3 {[%clk 0:02:21.9]} 25.
Nxe3 {[%clk 0:02:04.9]} 25... Ra8 {[%clk 0:02:22.4]} 26. Rfa1 {[%clk 0:02:04.3]}
26... Rxa7 {[%clk 0:02:22.7]} 27. Rxa7 {[%clk 0:02:04.8]} 27... Ra8 {[%clk
0:02:20.8]} 28. Rxa8+ {[%clk 0:02:05]} 28... Qxa8 {[%clk 0:02:22.7]} 29. Bf1
{[%clk 0:02:05.3]} 29... Qa1 {[%clk 0:02:21]} 30. Kg2 {[%clk 0:02:01.7]} 30...
Bf8 {[%clk 0:02:21.7]} 31. f4 {[%clk 0:02:02.3]} 31... Ba3 {[%clk 0:02:15.3]}
32. bxa3 {[%clk 0:02:00.2]} 32... b2 {[%clk 0:02:15.7]} 33. Bd3 {[%clk
0:02:00.7]} 33... Bb5 {[%clk 0:02:14.8]} 34. Bc2 {[%clk 0:01:56.4]} 34... Ba4
{[%clk 0:01:56.8]} 35. Bd3 {[%clk 0:01:57.1]} 35... Qc1 {[%clk 0:01:47.2]} 36.
Qe2 {[%clk 0:01:24.3]} 36... Qxc3 {[%clk 0:01:37.2]} 37. Nd1 {[%clk 0:01:20.5]}
37... Bxd1 {[%clk 0:00:52]} 38. Qxd1 {[%clk 0:01:21.1]} 38... Qxa3 {[%clk
0:00:52.3]} 39. Bb1 {[%clk 0:01:18.1]} 39... Qe3 {[%clk 0:00:52.4]} 40. Qd3
{[%clk 0:01:18.4]} 40... Qe1 {[%clk 0:00:52.1]} 41. Qc2 {[%clk 0:01:13.1]} 41...
Qb4 {[%clk 0:00:46.2]} 42. Qd3 {[%clk 0:01:12.8]} 42... Qe1 {[%clk 0:00:45.5]}
43. h4 {[%clk 0:01:12]} 43... h5 {[%clk 0:00:43.3]} 44. Kf3 {[%clk 0:01:09.3]}
44... Qh1+ {[%clk 0:00:42]} 45. Ke2 {[%clk 0:01:08.5]} 45... Qg2+ {[%clk
0:00:42.7]} 46. Kd1 {[%clk 0:01:08.7]} 46... Kg7 {[%clk 0:00:43.1]} 47. Bc2
{[%clk 0:00:52.6]} 47... Kg8 {[%clk 0:00:41.3]} 48. Qb3 {[%clk 0:00:49]} 48...
Qg1+ {[%clk 0:00:40.3]} 49. Ke2 {[%clk 0:00:46.8]} 49... Qxd4 {[%clk 0:00:42.2]}
50. Bd3 {[%clk 0:00:45.5]} 50... Qg1 {[%clk 0:00:38.8]} 51. Kd2 {[%clk
0:00:42.8]} 51... Qxg3 {[%clk 0:00:37.3]} 52. Qxb2 {[%clk 0:00:42.4]} 52...
Qxf4+ {[%clk 0:00:36.6]} 53. Kc2 {[%clk 0:00:43.4]} 53... Qxh4 {[%clk
0:00:36.3]} 54. Qb8+ {[%clk 0:00:39.9]} 54... Kg7 {[%clk 0:00:37.4]} 55. Qd6
{[%clk 0:00:40.9]} 55... Qf2+ {[%clk 0:00:35]} 56. Kc3 {[%clk 0:00:40.5]} 56...
h4 {[%clk 0:00:36.9]} 57. Qe7 {[%clk 0:00:41.2]} 57... Qe1+ {[%clk 0:00:35.5]}
58. Kd4 {[%clk 0:00:41.2]} 58... Qa1+ {[%clk 0:00:35.8]} 59. Ke3 {[%clk
0:00:37.7]} 59... Qxe5+ {[%clk 0:00:37]} 60. Kf3 {[%clk 0:00:39.2]} 60... Qg3+
{[%clk 0:00:36.7]} 61. Ke2 {[%clk 0:00:40.1]} 61... h3 {[%clk 0:00:36.1]} 62.
Qc5 {[%clk 0:00:37.4]} 62... h2 {[%clk 0:00:30.8]} 63. Qc1 {[%clk 0:00:36.7]}
63... Qg2+ {[%clk 0:00:30.2]} 64. Ke3 {[%clk 0:00:37.5]} 64... Qg5+ {[%clk
0:00:31.1]} 0-1

[Event "*** Titled Tuesday Blitz"]
[Site "Chess.com"]
[Date "2018.06.05"]
[Round "4"]
[White "albi1999"]
[Black "SCIM"]
[Result "0-1"]
[WhiteElo "2534"]
[BlackElo "2395"]
[TimeControl "180+2"]
[EndTime "13:59:29 PDT"]
[Termination "SCIM won by resignation"]

1. d4 {[%clk 0:03:01.1]} 1... d5 {[%clk 0:02:58.5]} 2. c4 {[%clk 0:03:01.6]}
2... e6 {[%clk 0:02:59.9]} 3. Nf3 {[%clk 0:03:02.2]} 3... Nf6 {[%clk 0:03:00.5]}
4. g3 {[%clk 0:03:03.3]} 4... dxc4 {[%clk 0:03:00.1]} 5. Bg2 {[%clk 0:03:04.1]}
5... a6 {[%clk 0:03:00.9]} 6. O-O {[%clk 0:03:03.5]} 6... Nc6 {[%clk 0:03:01.2]}
7. e3 {[%clk 0:03:04.5]} 7... Bd7 {[%clk 0:03:00.8]} 8. Qe2 {[%clk 0:03:04.8]}
8... Bd6 {[%clk 0:03:00.6]} 9. Qxc4 {[%clk 0:03:05]} 9... O-O {[%clk 0:03:01.9]}
10. Nbd2 {[%clk 0:03:05.4]} 10... Rb8 {[%clk 0:02:59.2]} 11. Qc2 {[%clk
0:03:00.8]} 11... Qe7 {[%clk 0:02:45.8]} 12. Nc4 {[%clk 0:02:59.9]} 12... Nb4
{[%clk 0:02:43.1]} 13. Qb3 {[%clk 0:02:51.1]} 13... Nbd5 {[%clk 0:02:24.1]} 14.
Bd2 {[%clk 0:02:48.5]} 14... Ne4 {[%clk 0:02:21.9]} 15. Nxd6 {[%clk 0:02:42.6]}
15... cxd6 {[%clk 0:02:14.4]} 16. Bb4 {[%clk 0:02:34]} 16... Nxb4 {[%clk
0:02:08.9]} 17. Qxb4 {[%clk 0:02:35.9]} 17... Bc6 {[%clk 0:02:09.1]} 18. Rfc1
{[%clk 0:02:33.8]} 18... Rfc8 {[%clk 0:01:47.7]} 19. Rc2 {[%clk 0:02:23.5]}
19... Bd5 {[%clk 0:01:45.3]} 20. Rac1 {[%clk 0:02:22.8]} 20... Rxc2 {[%clk
0:01:44.6]} 21. Rxc2 {[%clk 0:02:24.7]} 21... Qd7 {[%clk 0:01:31.3]} 22. b3
{[%clk 0:01:57.7]} 22... Rc8 {[%clk 0:01:30.8]} 23. Qa4 {[%clk 0:01:33.7]} 23...
b5 {[%clk 0:01:12.4]} 24. Rxc8+ {[%clk 0:01:32.8]} 24... Qxc8 {[%clk 0:01:12.2]}
25. Qa5 {[%clk 0:01:32.3]} 25... h6 {[%clk 0:01:03.1]} 26. h3 {[%clk 0:00:44.5]}
26... Qc1+ {[%clk 0:01:00.4]} 27. Kh2 {[%clk 0:00:40.9]} 27... Nxf2 {[%clk
0:01:00.4]} 28. Qxa6 {[%clk 0:00:40.4]} 28... Qxe3 {[%clk 0:00:52.6]} 29. Qc8+
{[%clk 0:00:32.4]} 29... Kh7 {[%clk 0:00:52.2]} 30. Nh4 {[%clk 0:00:19.8]} 30...
Bxg2 {[%clk 0:00:35.8]} 31. Nxg2 {[%clk 0:00:20.7]} 31... Qxd4 {[%clk
0:00:36.2]} 32. Qc2+ {[%clk 0:00:20.5]} 32... Ne4 {[%clk 0:00:32]} 33. a4 {[%clk
0:00:21.3]} 33... bxa4 {[%clk 0:00:27.3]} 34. bxa4 {[%clk 0:00:23.2]} 34... Qe5
{[%clk 0:00:22.7]} 35. Nf4 {[%clk 0:00:21.7]} 35... f5 {[%clk 0:00:21.4]} 36.
Ne2 {[%clk 0:00:20.3]} 36... Qc5 {[%clk 0:00:18.4]} 37. Qxc5 {[%clk 0:00:19.1]}
37... Nxc5 {[%clk 0:00:19.1]} 38. a5 {[%clk 0:00:20.6]} 38... Kg6 {[%clk
0:00:20.1]} 39. Kg2 {[%clk 0:00:21.7]} 39... Kf6 {[%clk 0:00:20.9]} 40. Nc3
{[%clk 0:00:21.9]} 40... Ke5 {[%clk 0:00:20.3]} 41. Nb5 {[%clk 0:00:23]} 41...
Na6 {[%clk 0:00:19.1]} 42. Kf3 {[%clk 0:00:23.8]} 42... g5 {[%clk 0:00:19.4]}
43. Ke3 {[%clk 0:00:24.9]} 43... Nc5 {[%clk 0:00:16.4]} 44. Nc7 {[%clk
0:00:24.9]} 44... d5 {[%clk 0:00:15.7]} 45. a6 {[%clk 0:00:25.7]} 45... Nxa6
{[%clk 0:00:15.9]} 46. Nxa6 {[%clk 0:00:27.6]} 46... f4+ {[%clk 0:00:16.6]} 47.
gxf4+ {[%clk 0:00:28.1]} 47... gxf4+ {[%clk 0:00:18]} 48. Kd3 {[%clk 0:00:28.7]}
48... Kf5 {[%clk 0:00:18.3]} 49. Nb4 {[%clk 0:00:30]} 49... Kg5 {[%clk
0:00:17.3]} 50. Ke2 {[%clk 0:00:27.1]} 50... Kh4 {[%clk 0:00:11.5]} 51. Kf3
{[%clk 0:00:28.2]} 51... Kxh3 {[%clk 0:00:12.5]} 52. Kxf4 {[%clk 0:00:29.5]}
52... h5 {[%clk 0:00:13.3]} 53. Nc6 {[%clk 0:00:28]} 53... h4 {[%clk 0:00:10.9]}
54. Nd4 {[%clk 0:00:29]} 54... Kg2 {[%clk 0:00:10.8]} 55. Nxe6 {[%clk
0:00:20.5]} 55... h3 {[%clk 0:00:11.5]} 56. Ke3 {[%clk 0:00:18.3]} 56... h2
{[%clk 0:00:12.4]} 57. Nf4+ {[%clk 0:00:20]} 57... Kg3 {[%clk 0:00:07.9]} 58.
Ne2+ {[%clk 0:00:19.6]} 58... Kg4 {[%clk 0:00:07.3]} 59. Nc3 {[%clk 0:00:18.9]}
0-1